[Event "Vegagatan O1800 RPD"]
[Site "Goteborgs Schackcentrum, Vegatan 20, Gothenburg, Sweden"]
[Date "2025.05.03"]
[Round "1.1"]
[White "Torres, Lucas"]
[Black "Kaplan, Viktor"]
[Result "0-1"]
[TimeControl "29 minutes + 30 seconds per move from move one"]
[WhiteFideId "1769464"]
[BlackFideId "1780956"]
[WhiteElo "1998"]
[BlackElo "1822"]

1. e4 {[%clk 00:29:57]} {[%emt 00:00:02]} e6 {[%clk 00:30:00]} {[%emt
00:00:01]} 2. d4 {[%clk 00:30:18]} {[%emt 00:00:09]} d5 {[%clk 00:30:29]} 3.
Nc3 {[%clk 00:30:42]} {[%emt 00:00:07]} Nf6 {[%clk 00:30:57]} 4. Bg5 {[%clk
00:31:03]} {[%emt 00:00:08]} Bb4 {[%clk 00:31:26]} {[%emt 00:00:02]} 5. e5
{[%clk 00:31:17]} {[%emt 00:00:15]} h6 {[%clk 00:31:53]} {[%emt 00:00:03]} 6.
Bd2 {[%clk 00:30:27]} {[%emt 00:01:19]} Bxc3 {[%clk 00:32:21]} {[%emt
00:00:03]} 7. bxc3 {[%clk 00:30:29]} {[%emt 00:00:29]} Ne4 {[%clk 00:32:49]}
{[%emt 00:00:01]} 8. Bd3 {[%clk 00:26:54]} {[%emt 00:04:05]} Nxd2 {[%clk
00:32:22]} {[%emt 00:00:58]} 9. Qxd2 {[%clk 00:27:04]} {[%emt 00:00:20]} c5
{[%clk 00:32:20]} {[%emt 00:00:31]} 10. Nf3 {[%clk 00:24:41]} {[%emt 00:02:53]}
Nc6 {[%clk 00:32:15]} {[%emt 00:00:35]} 11. O-O {[%clk 00:24:52]} {[%emt
00:00:19]} Qa5 {[%clk 00:30:44]} {[%emt 00:02:02]} 12. Rfd1 {[%clk 00:24:04]}
{[%emt 00:01:17]} Bd7 {[%clk 00:28:53]} {[%emt 00:02:22]} 13. Rab1 {[%clk
00:22:55]} {[%emt 00:01:38]} c4 {[%clk 00:26:55]} {[%emt 00:02:29]} 14. Be2
{[%clk 00:22:25]} {[%emt 00:00:57]} O-O-O {[%clk 00:26:05]} {[%emt 00:01:23]}
15. Rb2 {[%clk 00:19:36]} {[%emt 00:03:18]} Ne7 {[%clk 00:23:31]} {[%emt
00:03:04]} 16. Rdb1 {[%clk 00:18:06]} {[%emt 00:01:59]} Qc7 {[%clk 00:20:21]}
{[%emt 00:03:42]} 17. Qc1 {[%clk 00:14:12]} {[%emt 00:04:23]} Bc6 {[%clk
00:19:19]} {[%emt 00:01:33]} 18. Rb4 {[%clk 00:13:49]} {[%emt 00:00:53]} Kb8
{[%clk 00:16:50]} {[%emt 00:02:59]} 19. a4 {[%clk 00:12:27]} {[%emt 00:01:51]}
Ka8 {[%clk 00:12:10]} {[%emt 00:05:11]} 20. Qa3 {[%clk 00:12:22]} {[%emt
00:00:34]} f5 {[%clk 00:10:51]} {[%emt 00:01:50]} 21. a5 {[%clk 00:10:26]}
{[%emt 00:02:25]} g5 {[%clk 00:10:03]} {[%emt 00:01:19]} 22. Nd2 {[%clk
00:09:45]} {[%emt 00:01:11]} Nc8 {[%clk 00:07:57]} {[%emt 00:02:36]} 23. Bf3
{[%clk 00:03:37]} {[%emt 00:06:37]} g4 {[%clk 00:05:05]} {[%emt 00:03:22]} 24.
Be2 {[%clk 00:04:04]} {[%emt 00:00:03]} h5 {[%clk 00:05:16]} {[%emt 00:00:20]}
25. Bxc4 {[%clk 00:01:43]} {[%emt 00:02:51]} dxc4 {[%clk 00:05:16]} {[%emt
00:00:31]} 26. Nxc4 {[%clk 00:02:08]} {[%emt 00:00:04]} h4 {[%clk 00:03:42]}
{[%emt 00:02:04]} 27. Nb6+ {[%clk 00:01:06]} {[%emt 00:01:31]} Kb8 {[%clk
00:02:59]} {[%emt 00:01:13]} 28. Na4 {[%clk 00:01:02]} {[%emt 00:00:34]} Qxa5
{[%clk 00:02:31]} {[%emt 00:00:59]} 29. Qb3 {[%clk 00:00:37]} {[%emt 00:00:56]}
Qd5 {[%clk 00:02:15]} {[%emt 00:00:45]} 30. Qxd5 {[%clk 00:00:40]} {[%emt
00:00:27]} Bxd5 {[%clk 00:02:31]} {[%emt 00:00:13]} 31. Nc5 {[%clk 00:01:00]}
{[%emt 00:00:10]} Nb6 {[%clk 00:02:41]} {[%emt 00:00:21]} 32. Nd3 {[%clk
00:00:37]} {[%emt 00:00:52]} Rc8 {[%clk 00:02:45]} {[%emt 00:00:26]} 33. Nc5
{[%clk 00:01:04]} {[%emt 00:00:04]} h3 {[%clk 00:02:38]} {[%emt 00:00:37]} 34.
g3 {[%clk 00:01:30]} {[%emt 00:00:03]} Rh7 {[%clk 00:02:51]} {[%emt 00:00:17]}
35. Kf1 {[%clk 00:01:36]} {[%emt 00:00:24]} Rhc7 {[%clk 00:03:06]} {[%emt
00:00:16]} 36. Ke2 {[%clk 00:02:02]} {[%emt 00:00:03]} Rxc5 {[%clk 00:02:54]}
{[%emt 00:00:43]} 37. dxc5 {[%clk 00:02:24]} {[%emt 00:00:07]} Rxc5 {[%clk
00:03:22]} {[%emt 00:00:03]} 38. Kd3 {[%clk 00:02:17]} {[%emt 00:00:36]} Bc4+
{[%clk 00:03:10]} {[%emt 00:00:42]} 39. Kd4 {[%clk 00:02:16]} {[%emt 00:00:30]}
Rd5+ {[%clk 00:03:30]} {[%emt 00:00:11]} 40. Ke3 {[%clk 00:02:14]} {[%emt
00:00:32]} Rxe5+ {[%clk 00:03:57]} {[%emt 00:00:04]} 41. Kf4 {[%clk 00:01:29]}
{[%emt 00:01:15]} Re2 {[%clk 00:03:49]} {[%emt 00:00:37]} 42. Kg5 {[%clk
00:00:45]} {[%emt 00:01:14]} Rxf2 {[%clk 00:03:26]} {[%emt 00:00:54]} 43. Rh1
{[%clk 00:00:46]} {[%emt 00:00:28]} Bd5 {[%clk 00:03:40]} {[%emt 00:00:17]} 44.
Re1 {[%clk 00:01:11]} {[%emt 00:00:05]} Rxc2 {[%clk 00:03:54]} {[%emt
00:00:16]} 45. Kf6 {[%clk 00:01:20]} {[%emt 00:00:20]} Rxh2 {[%clk 00:03:32]}
{[%emt 00:00:52]} 46. c4 {[%clk 00:01:46]} {[%emt 00:00:03]} Bxc4 {[%clk
00:03:03]} {[%emt 00:01:00]} 47. Kf7 {[%clk 00:01:48]} {[%emt 00:00:28]} Rd2
{[%clk 00:02:44]} {[%emt 00:00:35]} 48. Rc1 {[%clk 00:01:43]} {[%emt 00:00:49]}
h2 {[%clk 00:02:48]} {[%emt 00:00:26]} 49. Rbb1 {[%clk 00:02:03]} {[%emt
00:00:10]} Bd5 {[%clk 00:02:52]} {[%emt 00:00:26]} 50. Ke7 {[%clk 00:02:27]}
{[%emt 00:00:07]} h1=Q {[%clk 00:02:36]} {[%emt 00:00:46]} 51. Rxh1 {[%clk
00:02:54]} Bxh1 {[%clk 00:03:01]} {[%emt 00:00:07]} 52. Rxh1 {[%clk 00:03:22]}
{[%emt 00:00:02]} Rg2 {[%clk 00:03:11]} {[%emt 00:00:20]} 53. Kxe6 {[%clk
00:03:44]} {[%emt 00:00:08]} Rxg3 {[%clk 00:03:35]} {[%emt 00:00:06]} 54. Kxf5
{[%clk 00:04:12]} {[%emt 00:00:03]} a5 {[%clk 00:03:55]} {[%emt 00:00:09]} 55.
Kf4 {[%clk 00:04:27]} {[%emt 00:00:13]} Rg2 {[%clk 00:04:22]} {[%emt 00:00:05]}
56. Ke3 {[%clk 00:04:55]} {[%emt 00:00:02]} a4 {[%clk 00:04:43]} {[%emt
00:00:10]} 57. Kd4 {[%clk 00:05:24]} {[%emt 00:00:01]} a3 {[%clk 00:05:10]}
{[%emt 00:00:03]} 58. Kc5 {[%clk 00:05:47]} {[%emt 00:00:07]} Ka7 {[%clk
00:05:29]} {[%emt 00:00:11]} 59. Kb5 {[%clk 00:05:56]} {[%emt 00:00:21]} g3
{[%clk 00:05:48]} {[%emt 00:00:11]} 60. Ka5 {[%clk 00:06:20]} {[%emt 00:00:05]}
Rh2 {[%clk 00:06:08]} {[%emt 00:00:06]} 61. Ra1 {[%clk 00:06:26]} {[%emt
00:00:28]} a2 {[%clk 00:06:31]} {[%emt 00:00:07]} 62. Kb5 {[%clk 00:06:54]}
{[%emt 00:00:02]} Rb2+ {[%clk 00:06:51]} {[%emt 00:00:10]} 63. Ka5 {[%clk
00:07:16]} {[%emt 00:00:09]} Nc4+ {[%clk 00:07:08]} {[%emt 00:00:13]} 0-1

[Event "Vegagatan O1800 RPD"]
[Site "Goteborgs Schackcentrum, Vegatan 20, Gothenburg, Sweden"]
[Date "2025.05.03"]
[Round "1.2"]
[White "Garby, Jacob"]
[Black "Kenani, Dariush"]
[Result "0-1"]
[TimeControl "29 minutes + 30 seconds per move from move one"]
[WhiteFideId "1786520"]
[BlackFideId "1707973"]
[WhiteElo "1820"]
[BlackElo "2075"]

1. d4 {[%clk 00:29:57]} {[%emt 00:00:03]} Nf6 {[%clk 00:29:43]} {[%emt
00:00:17]} 2. c4 {[%clk 00:30:19]} {[%emt 00:00:09]} e6 {[%clk 00:29:53]}
{[%emt 00:00:19]} 3. Nf3 {[%clk 00:29:48]} {[%emt 00:01:01]} d5 {[%clk
00:29:42]} {[%emt 00:00:40]} 4. e3 {[%clk 00:29:51]} {[%emt 00:00:28]} Be7
{[%clk 00:29:37]} {[%emt 00:00:34]} 5. Nc3 {[%clk 00:29:34]} {[%emt 00:00:48]}
O-O {[%clk 00:29:45]} {[%emt 00:00:21]} 6. Bd3 {[%clk 00:28:42]} {[%emt
00:01:22]} b6 {[%clk 00:28:52]} {[%emt 00:01:24]} 7. O-O {[%clk 00:27:47]}
{[%emt 00:01:24]} Bb7 {[%clk 00:28:54]} {[%emt 00:00:28]} 8. b3 {[%clk
00:26:34]} {[%emt 00:01:44]} Nbd7 {[%clk 00:28:46]} {[%emt 00:00:38]} 9. Re1
{[%clk 00:25:07]} {[%emt 00:01:56]} c5 {[%clk 00:28:30]} {[%emt 00:00:46]} 10.
e4 {[%clk 00:24:18]} {[%emt 00:01:19]} cxd4 {[%clk 00:27:44]} {[%emt 00:01:17]}
11. Nxd4 {[%clk 00:24:24]} {[%emt 00:00:23]} dxc4 {[%clk 00:25:58]} {[%emt
00:02:17]} 12. Bxc4 {[%clk 00:23:24]} {[%emt 00:01:29]} Ne5 {[%clk 00:23:11]}
{[%emt 00:03:17]} 13. Bf1 {[%clk 00:19:56]} {[%emt 00:03:58]} Bb4 {[%clk
00:22:07]} {[%emt 00:01:34]} 14. Bb2 {[%clk 00:17:43]} {[%emt 00:02:44]} Rc8
{[%clk 00:17:23]} {[%emt 00:05:14]} 15. Rc1 {[%clk 00:15:37]} {[%emt 00:02:37]}
Bxc3 {[%clk 00:17:25]} {[%emt 00:00:27]} 16. Bxc3 {[%clk 00:14:57]} {[%emt
00:01:10]} Nxe4 {[%clk 00:17:43]} {[%emt 00:00:12]} 17. Nxe6 {[%clk 00:14:28]}
{[%emt 00:00:59]} Qxd1 {[%clk 00:17:29]} {[%emt 00:00:44]} 18. Rcxd1 {[%clk
00:12:03]} {[%emt 00:02:55]} Nxc3 {[%clk 00:17:05]} {[%emt 00:00:54]} 19. Nxf8
{[%clk 00:11:58]} {[%emt 00:00:35]} Nxd1 {[%clk 00:16:48]} {[%emt 00:00:46]} 20.
Rxd1 {[%clk 00:09:29]} {[%emt 00:02:59]} Kxf8 {[%clk 00:16:53]} {[%emt
00:00:25]} 21. f4 {[%clk 00:09:16]} {[%emt 00:00:44]} Nc6 {[%clk 00:14:46]}
{[%emt 00:02:36]} 22. Rd7 {[%clk 00:08:33]} {[%emt 00:01:14]} Nd8 {[%clk
00:14:57]} {[%emt 00:00:18]} 23. Bc4 {[%clk 00:08:16]} {[%emt 00:00:48]} Ke8
{[%clk 00:14:21]} {[%emt 00:01:05]} 24. Bb5 {[%clk 00:08:22]} {[%emt 00:00:25]}
Bc6 {[%clk 00:14:08]} {[%emt 00:00:42]} 25. Bxc6 {[%clk 00:08:00]} {[%emt
00:00:53]} Nxc6 {[%clk 00:14:19]} {[%emt 00:00:18]} 0-1

[Event "Vegagatan O1800 RPD"]
[Site "Goteborgs Schackcentrum, Vegatan 20, Gothenburg, Sweden"]
[Date "2025.05.03"]
[Round "1.3"]
[White "Gallardo, Guillermo"]
[Black "Klouda, James"]
[Result "1-0"]
[TimeControl "29 minutes + 30 seconds per move from move one"]
[WhiteFideId "1773488"]
[BlackFideId "1795759"]
[WhiteElo "1779"]
[BlackElo "1814"]

1. Nf3 {[%clk 00:29:55]} {[%emt 00:00:04]} d5 {[%clk 00:29:50]} {[%emt
00:00:10]} 2. c4 {[%clk 00:29:26]} {[%emt 00:00:59]} c6 {[%clk 00:29:35]}
{[%emt 00:00:45]} 3. cxd5 {[%clk 00:29:17]} {[%emt 00:00:39]} cxd5 {[%clk
00:30:00]} {[%emt 00:00:04]} 4. d4 {[%clk 00:29:45]} {[%emt 00:00:03]} Bf5
{[%clk 00:30:23]} {[%emt 00:00:06]} 5. Nc3 {[%clk 00:30:06]} {[%emt 00:00:10]}
a6 {[%clk 00:30:19]} {[%emt 00:00:34]} 6. g3 {[%clk 00:30:24]} {[%emt
00:00:11]} e6 {[%clk 00:30:40]} {[%emt 00:00:09]} 7. a3 {[%clk 00:30:52]}
{[%emt 00:00:03]} Nf6 {[%clk 00:31:05]} {[%emt 00:00:05]} 8. Bg2 {[%clk
00:31:15]} {[%emt 00:00:07]} g6 {[%clk 00:30:52]} {[%emt 00:00:43]} 9. Nh4
{[%clk 00:30:28]} {[%emt 00:01:16]} Ne4 {[%clk 00:29:43]} {[%emt 00:01:40]} 10.
Nxf5 {[%clk 00:29:04]} {[%emt 00:01:54]} Nxc3 {[%clk 00:29:48]} {[%emt
00:00:24]} 11. bxc3 {[%clk 00:29:19]} {[%emt 00:00:15]} exf5 {[%clk 00:30:04]}
{[%emt 00:00:14]} 12. Qb3 {[%clk 00:29:16]} {[%emt 00:00:33]} Bg7 {[%clk
00:24:01]} {[%emt 00:06:33]} 13. Qxb7 {[%clk 00:23:35]} {[%emt 00:06:12]} Nd7
{[%clk 00:24:04]} {[%emt 00:00:27]} 14. Qxd5 {[%clk 00:22:55]} {[%emt
00:01:10]} Rb8 {[%clk 00:20:47]} {[%emt 00:03:47]} 15. a4 {[%clk 00:21:57]}
{[%emt 00:01:28]} O-O {[%clk 00:20:22]} {[%emt 00:00:55]} 16. O-O {[%clk
00:22:15]} {[%emt 00:00:10]} Qc7 {[%clk 00:20:30]} {[%emt 00:00:24]} 17. Bf4
{[%clk 00:22:34]} {[%emt 00:00:11]} Qxc3 {[%clk 00:19:46]} {[%emt 00:01:13]} 18.
Bxb8 {[%clk 00:20:21]} {[%emt 00:02:44]} Nxb8 {[%clk 00:20:06]} {[%emt
00:00:10]} 19. e3 {[%clk 00:20:30]} {[%emt 00:00:21]} Bh6 {[%clk 00:18:50]}
{[%emt 00:01:46]} 20. Rfc1 {[%clk 00:20:19]} {[%emt 00:00:40]} Qd2 {[%clk
00:17:11]} {[%emt 00:02:09]} 21. Rc7 {[%clk 00:19:25]} {[%emt 00:01:24]} Bxe3
{[%clk 00:12:55]} {[%emt 00:04:45]} 22. fxe3 {[%clk 00:18:25]} {[%emt
00:01:31]} Qxe3+ {[%clk 00:13:20]} {[%emt 00:00:05]} 23. Kh1 {[%clk 00:18:53]}
{[%emt 00:00:03]} Kg7 {[%clk 00:13:28]} {[%emt 00:00:22]} 24. Qe5+ {[%clk
00:18:14]} {[%emt 00:01:09]} Qxe5 {[%clk 00:13:32]} {[%emt 00:00:25]} 25. dxe5
{[%clk 00:18:42]} {[%emt 00:00:02]} Re8 {[%clk 00:13:42]} {[%emt 00:00:20]} 26.
Bd5 {[%clk 00:17:46]} {[%emt 00:01:26]} Rxe5 {[%clk 00:13:53]} {[%emt
00:00:19]} 27. Bxf7 {[%clk 00:18:06]} {[%emt 00:00:10]} Kh6 {[%clk 00:14:20]}
{[%emt 00:00:03]} 28. Rb1 {[%clk 00:17:50]} {[%emt 00:00:46]} Kg5 {[%clk
00:14:01]} {[%emt 00:00:50]} 29. Rxb8 {[%clk 00:17:23]} {[%emt 00:00:57]} Kg4
{[%clk 00:13:27]} {[%emt 00:01:04]} 30. Rb4+ {[%clk 00:17:36]} {[%emt
00:00:17]} Kh3 {[%clk 00:13:53]} {[%emt 00:00:03]} 31. Rh4# {[%clk 00:17:30]}
{[%emt 00:00:03]} 1-0

[Event "Vegagatan O1800 RPD"]
[Site "Goteborgs Schackcentrum, Vegatan 20, Gothenburg, Sweden"]
[Date "2025.05.03"]
[Round "1.4"]
[White "Karlsson, Roger"]
[Black "Christoforidis, Nicolas"]
[Result "1-0"]
[TimeControl "29 minutes + 30 seconds per move from move one"]
[WhiteFideId "1732293"]
[BlackFideId "1789180"]
[WhiteElo "1886"]
[BlackElo "1829"]

1. d4 {[%clk 00:29:55]} {[%emt 00:00:04]} Nf6 {[%clk 00:29:56]} {[%emt
00:00:04]} 2. Bg5 {[%clk 00:30:23]} {[%emt 00:00:02]} e6 {[%clk 00:30:08]}
{[%emt 00:00:19]} 3. Nf3 {[%clk 00:30:48]} {[%emt 00:00:05]} Be7 {[%clk
00:30:29]} {[%emt 00:00:08]} 4. e3 {[%clk 00:31:16]} {[%emt 00:00:02]} d5
{[%clk 00:30:25]} {[%emt 00:00:34]} 5. Nbd2 {[%clk 00:31:41]} {[%emt 00:00:05]}
Nbd7 {[%clk 00:30:33]} {[%emt 00:00:22]} 6. Be2 {[%clk 00:31:41]} c5 {[%clk
00:29:49]} {[%emt 00:01:45]} 7. c3 {[%clk 00:32:05]} O-O {[%clk 00:29:37]}
{[%emt 00:00:47]} 8. O-O {[%clk 00:32:33]} Ne8 {[%clk 00:27:51]} {[%emt
00:02:19]} 9. Bxe7 {[%clk 00:32:28]} Qxe7 {[%emt 00:00:57]} 10. e4 {[%clk
00:32:40]} cxd4 {[%clk 00:24:14]} {[%emt 00:04:32]} 11. Nxd4 {[%clk 00:31:41]}
{[%emt 00:01:29]} dxe4 {[%clk 00:21:38]} {[%emt 00:03:06]} 12. Nxe4 {[%clk
00:31:41]} {[%emt 00:00:30]} Nef6 {[%clk 00:20:39]} {[%emt 00:01:29]} 13. Qc2
{[%clk 00:30:29]} {[%emt 00:01:42]} Nc5 {[%clk 00:18:58]} {[%emt 00:02:10]} 14.
Ng3 {[%clk 00:30:15]} {[%emt 00:00:45]} a5 {[%clk 00:13:52]} {[%emt 00:05:36]}
15. Rae1 {[%clk 00:29:38]} {[%emt 00:01:07]} Bd7 {[%clk 00:12:10]} {[%emt
00:02:12]} 16. Bb5 {[%clk 00:25:54]} {[%emt 00:04:13]} Bxb5 {[%clk 00:11:22]}
{[%emt 00:01:19]} 17. Nxb5 {[%clk 00:26:17]} {[%emt 00:00:06]} Qd7 {[%clk
00:10:58]} {[%emt 00:00:54]} 18. Nd4 {[%clk 00:26:23]} {[%emt 00:00:24]} Rfd8
{[%clk 00:10:27]} {[%emt 00:01:01]} 19. Re5 {[%clk 00:25:55]} {[%emt 00:00:59]}
Qc7 {[%clk 00:08:57]} {[%emt 00:02:00]} 20. Re2 {[%clk 00:25:56]} {[%emt
00:00:29]} Rac8 {[%clk 00:07:34]} {[%emt 00:01:53]} 21. Nb3 {[%clk 00:19:50]}
{[%emt 00:06:35]} Nd3 {[%clk 00:05:38]} {[%emt 00:02:26]} 22. Nc1 {[%clk
00:19:56]} {[%emt 00:00:25]} Nf4 {[%clk 00:05:16]} {[%emt 00:00:51]} 23. Re3
{[%clk 00:14:32]} {[%emt 00:05:54]} Qc6 {[%clk 00:04:05]} {[%emt 00:01:40]} 24.
Ne4 {[%clk 00:13:42]} {[%emt 00:01:22]} N6d5 {[%clk 00:02:24]} {[%emt
00:02:11]} 25. Rf3 {[%clk 00:13:29]} {[%emt 00:00:43]} f5 {[%clk 00:02:25]}
{[%emt 00:00:29]} 26. Ng3 {[%clk 00:13:18]} {[%emt 00:00:41]} Nb4 {[%clk
00:02:10]} {[%emt 00:00:45]} 27. Qb3 {[%clk 00:13:34]} {[%emt 00:00:14]} Nbd3
{[%clk 00:02:25]} {[%emt 00:00:15]} 28. Nxf5 {[%clk 00:10:03]} {[%emt
00:04:00]} Qc5 {[%clk 00:01:21]} {[%emt 00:01:32]} 29. Nxd3 {[%clk 00:09:26]}
{[%emt 00:01:09]} Nxd3 {[%clk 00:01:23]} {[%emt 00:00:28]} 30. Nd4 {[%clk
00:06:00]} {[%emt 00:03:56]} Rxd4 {[%clk 00:00:54]} {[%emt 00:01:00]} 31. cxd4
{[%clk 00:06:24]} {[%emt 00:00:05]} 1-0

[Event "Vegagatan O1800 RPD"]
[Site "Goteborgs Schackcentrum, Vegatan 20, Gothenburg, Sweden"]
[Date "2025.05.03"]
[Round "2.1"]
[White "Kenani, Dariush"]
[Black "Torres, Lucas"]
[Result "0-1"]
[TimeControl "29 minutes + 30 seconds per move from move one"]
[WhiteFideId "1707973"]
[BlackFideId "1769464"]
[WhiteElo "2075"]
[BlackElo "1998"]

1. d4 {[%clk 00:25:25]} {[%emt 00:04:33]} Nf6 {[%clk 00:29:58]} {[%emt
00:00:03]} 2. c4 {[%clk 00:23:18]} {[%emt 00:02:37]} d6 {[%clk 00:30:27]}
{[%emt 00:00:01]} 3. g3 {[%clk 00:22:48]} {[%emt 00:01:00]} g6 {[%clk
00:30:10]} {[%emt 00:00:47]} 4. Bg2 {[%clk 00:23:06]} {[%emt 00:00:13]} Bg7
{[%clk 00:30:31]} {[%emt 00:00:07]} 5. e4 {[%clk 00:23:19]} {[%emt 00:00:17]}
O-O {[%clk 00:30:51]} {[%emt 00:00:10]} 6. Nc3 {[%clk 00:23:36]} {[%emt
00:00:14]} e5 {[%clk 00:30:47]} {[%emt 00:00:34]} 7. Nge2 {[%clk 00:23:03]}
{[%emt 00:01:03]} Nc6 {[%clk 00:29:32]} {[%emt 00:01:45]} 8. d5 {[%clk
00:22:51]} {[%emt 00:00:42]} Ne7 {[%clk 00:29:47]} {[%emt 00:00:15]} 9. O-O
{[%clk 00:23:12]} {[%emt 00:00:08]} Nd7 {[%clk 00:29:02]} {[%emt 00:01:16]} 10.
f4 {[%clk 00:21:21]} {[%emt 00:02:22]} f5 {[%clk 00:28:28]} {[%emt 00:01:03]}
11. Kh1 {[%clk 00:20:44]} {[%emt 00:01:06]} a6 {[%clk 00:23:04]} {[%emt
00:05:55]} 12. Be3 {[%clk 00:20:29]} {[%emt 00:00:44]} fxe4 {[%clk 00:20:51]}
{[%emt 00:02:44]} 13. Nxe4 {[%clk 00:20:18]} {[%emt 00:00:40]} Nf5 {[%clk
00:21:15]} {[%emt 00:00:07]} 14. Bg1 {[%clk 00:20:21]} {[%emt 00:00:27]} Nf6
{[%clk 00:20:30]} {[%emt 00:01:14]} 15. fxe5 {[%clk 00:19:49]} {[%emt
00:01:03]} Nxe4 {[%clk 00:20:31]} {[%emt 00:00:29]} 16. Bxe4 {[%clk 00:20:10]}
{[%emt 00:00:08]} Bxe5 {[%clk 00:20:49]} {[%emt 00:00:12]} 17. Qd2 {[%clk
00:19:48]} {[%emt 00:00:53]} Bg7 {[%clk 00:20:41]} {[%emt 00:00:37]} 18. Rae1
{[%clk 00:19:36]} {[%emt 00:00:43]} Bd7 {[%clk 00:20:38]} {[%emt 00:00:32]} 19.
Nf4 {[%clk 00:18:42]} {[%emt 00:01:24]} Qg5 {[%clk 00:17:36]} {[%emt 00:03:26]}
20. b4 {[%clk 00:16:48]} {[%emt 00:02:32]} Rae8 {[%clk 00:17:24]} {[%emt
00:00:42]} 21. Bg2 {[%clk 00:16:06]} {[%emt 00:01:10]} Qh6 {[%clk 00:13:55]}
{[%emt 00:03:59]} 22. Qd3 {[%clk 00:15:17]} {[%emt 00:01:20]} Rxe1 {[%clk
00:10:31]} {[%emt 00:03:54]} 23. Rxe1 {[%clk 00:15:31]} {[%emt 00:00:15]} Be5
{[%clk 00:10:51]} {[%emt 00:00:10]} 24. Ne2 {[%clk 00:13:19]} {[%emt 00:02:42]}
Re8 {[%clk 00:08:13]} {[%emt 00:03:09]} 25. Bf2 {[%clk 00:13:04]} {[%emt
00:00:45]} Ng7 {[%clk 00:06:23]} {[%emt 00:02:18]} 26. Nd4 {[%clk 00:10:53]}
{[%emt 00:02:42]} Nh5 {[%clk 00:05:07]} {[%emt 00:01:47]} 27. Kg1 {[%clk
00:10:35]} {[%emt 00:00:47]} Nf6 {[%clk 00:05:26]} {[%emt 00:00:11]} 28. Be3
{[%clk 00:09:28]} {[%emt 00:01:37]} Qg7 {[%clk 00:05:46]} {[%emt 00:00:11]} 29.
Nf3 {[%clk 00:09:38]} {[%emt 00:00:18]} Bf5 {[%clk 00:05:33]} {[%emt 00:00:45]}
30. Qb3 {[%clk 00:09:30]} {[%emt 00:00:36]} Ng4 {[%clk 00:02:54]} {[%emt
00:03:10]} 31. Ba7 {[%clk 00:03:37]} {[%emt 00:06:24]} b6 {[%clk 00:01:41]}
{[%emt 00:01:44]} 32. Nxe5 {[%clk 00:03:02]} {[%emt 00:01:04]} Nxe5 {[%clk
00:01:58]} {[%emt 00:00:12]} 33. c5 {[%clk 00:02:52]} {[%emt 00:00:41]} Nf3+
{[%clk 00:02:03]} {[%emt 00:00:25]} 34. Bxf3 {[%clk 00:03:14]} {[%emt
00:00:09]} Rxe1+ {[%clk 00:02:29]} {[%emt 00:00:03]} 35. Kf2 {[%clk 00:03:35]}
{[%emt 00:00:08]} Re8 {[%clk 00:02:26]} {[%emt 00:00:33]} 36. Kg2 {[%clk
00:02:01]} {[%emt 00:02:05]} Qd4 {[%clk 00:02:24]} {[%emt 00:00:32]} 0-1